[Event "*** Titled Tuesday Blitz"]
[Site "Chess.com"]
[Date "2019.09.03"]
[Round "1"]
[White "olksuna"]
[Black "ferdipy"]
[Result "1-0"]
[WhiteElo "2563"]
[BlackElo "2159"]
[TimeControl "180+2"]
[EndTime "15:08:37 PDT"]
[Termination "olksuna won by resignation"]

1. c4 {[%clk 0:03:00]} 1... e5 {[%clk 0:03:00.3]} 2. Nc3 {[%clk 0:03:00.4]} 2...
Nc6 {[%clk 0:03:00.1]} 3. g3 {[%clk 0:03:01.5]} 3... g6 {[%clk 0:03:00.5]} 4.
Bg2 {[%clk 0:03:01.6]} 4... Bg7 {[%clk 0:03:00.5]} 5. d3 {[%clk 0:03:01.9]} 5...
d6 {[%clk 0:03:00.5]} 6. Nf3 {[%clk 0:03:01]} 6... Nge7 {[%clk 0:02:45.5]} 7.
O-O {[%clk 0:03:00.8]} 7... O-O {[%clk 0:02:45.8]} 8. Rb1 {[%clk 0:02:54.6]}
8... a5 {[%clk 0:02:42.9]} 9. a3 {[%clk 0:02:55]} 9... h6 {[%clk 0:02:38.7]} 10.
b4 {[%clk 0:02:55.8]} 10... axb4 {[%clk 0:02:37.5]} 11. axb4 {[%clk 0:02:57.7]}
11... Be6 {[%clk 0:02:25.7]} 12. b5 {[%clk 0:02:53.1]} 12... Nb8 {[%clk
0:01:58.1]} 13. e3 {[%clk 0:02:25.5]} 13... Qc8 {[%clk 0:01:54.9]} 14. Re1
{[%clk 0:02:25]} 14... Bh3 {[%clk 0:01:54.2]} 15. Bh1 {[%clk 0:02:25.8]} 15...
c6 {[%clk 0:01:37.2]} 16. d4 {[%clk 0:02:25.9]} 16... Nd7 {[%clk 0:01:30.7]} 17.
Ne4 {[%clk 0:02:19.1]} 17... d5 {[%clk 0:01:19.1]} 18. Nd6 {[%clk 0:02:14.8]}
18... Qc7 {[%clk 0:01:15.8]} 19. c5 {[%clk 0:02:16.7]} 19... e4 {[%clk
0:01:11.2]} 20. bxc6 {[%clk 0:02:13]} 20... Qxc6 {[%clk 0:01:04.9]} 21. Nd2
{[%clk 0:02:10.5]} 21... b6 {[%clk 0:01:03.9]} 22. N6xe4 {[%clk 0:02:00.3]}
22... Bf5 {[%clk 0:00:41.8]} 23. g4 {[%clk 0:01:49.5]} 23... Bxe4 {[%clk
0:00:42.4]} 24. Nxe4 {[%clk 0:01:46.5]} 24... dxe4 {[%clk 0:00:43.7]} 25. Qc2
{[%clk 0:01:45.9]} 25... f5 {[%clk 0:00:44.8]} 26. Rd1 {[%clk 0:01:44.3]} 26...
Nd5 {[%clk 0:00:42.5]} 27. Qb3 {[%clk 0:01:35.3]} 27... Kh7 {[%clk 0:00:42]} 28.
cxb6 {[%clk 0:01:33.3]} 28... N7xb6 {[%clk 0:00:42]} 29. Bd2 {[%clk 0:01:34.1]}
29... Qc4 {[%clk 0:00:37.2]} 30. Rdc1 {[%clk 0:01:28.8]} 30... Qxb3 {[%clk
0:00:37.6]} 31. Rxb3 {[%clk 0:01:30.7]} 31... Rfc8 {[%clk 0:00:38.7]} 32. Rxc8
{[%clk 0:01:31.3]} 32... Rxc8 {[%clk 0:00:40.3]} 33. gxf5 {[%clk 0:01:32]} 33...
gxf5 {[%clk 0:00:41.2]} 34. f3 {[%clk 0:01:33.5]} 34... Nc4 {[%clk 0:00:33.5]}
35. Bc1 {[%clk 0:01:31]} 35... Nd6 {[%clk 0:00:28]} 36. Ba3 {[%clk 0:01:30.8]}
36... Nc4 {[%clk 0:00:18.5]} 37. fxe4 {[%clk 0:01:31.4]} 37... Ndxe3 {[%clk
0:00:19.8]} 38. e5 {[%clk 0:01:29.7]} 38... f4 {[%clk 0:00:19.7]} 39. Be4+
{[%clk 0:01:29.9]} 39... Kg8 {[%clk 0:00:20.3]} 40. Bc5 {[%clk 0:01:28.1]} 40...
Bf8 {[%clk 0:00:21.7]} 41. Bxf8 {[%clk 0:01:27.3]} 41... Kxf8 {[%clk 0:00:23.1]}
42. Rb7 {[%clk 0:01:25.6]} 42... Nd2 {[%clk 0:00:24]} 43. Bd3 {[%clk 0:01:25.5]}
43... Rc3 {[%clk 0:00:23.3]} 44. Bg6 {[%clk 0:01:23.9]} 44... Rc1+ {[%clk
0:00:21.4]} 45. Kf2 {[%clk 0:01:25.1]} 45... Rf1+ {[%clk 0:00:20.3]} 46. Ke2
{[%clk 0:01:25.6]} 46... Rg1 {[%clk 0:00:22]} 47. Bh5 {[%clk 0:01:24.6]} 47...
Ne4 {[%clk 0:00:22.6]} 48. e6 {[%clk 0:01:24.1]} 48... Nc3+ {[%clk 0:00:21.8]}
49. Kd3 {[%clk 0:01:23.2]} 49... Ncd5 {[%clk 0:00:23.4]} 50. Rf7+ {[%clk
0:01:16.4]} 50... Kg8 {[%clk 0:00:21.5]} 51. e7 {[%clk 0:01:17.9]} 51... Nxe7
{[%clk 0:00:21.8]} 52. Rxe7 {[%clk 0:01:19.8]} 52... Rd1+ {[%clk 0:00:20.6]} 53.
Bxd1 {[%clk 0:01:18.9]} 53... Nxd1 {[%clk 0:00:20.2]} 54. d5 {[%clk 0:01:20.2]}
54... Ne3 {[%clk 0:00:19.1]} 55. d6 {[%clk 0:01:18.5]} 1-0

[Event "*** Titled Tuesday Blitz"]
[Site "Chess.com"]
[Date "2019.09.03"]
[Round "1"]
[White "wonderfultime"]
[Black "Iustin106"]
[Result "1-0"]
[WhiteElo "2938"]
[BlackElo "2500"]
[TimeControl "180+2"]
[EndTime "15:08:42 PDT"]
[Termination "wonderfultime won by resignation"]

1. d3 {[%clk 0:02:54.4]} 1... Nf6 {[%clk 0:03:00.6]} 2. g3 {[%clk 0:02:54.7]}
2... g6 {[%clk 0:03:00.2]} 3. Bg2 {[%clk 0:02:56.1]} 3... Bg7 {[%clk 0:03:01.7]}
4. Nf3 {[%clk 0:02:56.3]} 4... O-O {[%clk 0:03:03.1]} 5. O-O {[%clk 0:02:57.8]}
5... d5 {[%clk 0:03:04.4]} 6. Nbd2 {[%clk 0:02:58.4]} 6... c5 {[%clk 0:03:05.5]}
7. e4 {[%clk 0:02:56.9]} 7... Nc6 {[%clk 0:03:06.8]} 8. Re1 {[%clk 0:02:57.7]}
8... e5 {[%clk 0:03:07.3]} 9. exd5 {[%clk 0:02:47.1]} 9... Nxd5 {[%clk
0:03:09.2]} 10. a3 {[%clk 0:02:49]} 10... Re8 {[%clk 0:03:08.9]} 11. Nc4 {[%clk
0:02:42.3]} 11... f6 {[%clk 0:02:54.6]} 12. Nfd2 {[%clk 0:02:33.1]} 12... Be6
{[%clk 0:02:53.9]} 13. Ne4 {[%clk 0:02:20.7]} 13... Bf8 {[%clk 0:02:28.4]} 14.
a4 {[%clk 0:01:50]} 14... b6 {[%clk 0:02:26.4]} 15. c3 {[%clk 0:01:37.6]} 15...
Qd7 {[%clk 0:02:24.7]} 16. Qf3 {[%clk 0:01:10.4]} 16... Be7 {[%clk 0:02:14.6]}
17. Qe2 {[%clk 0:01:08.5]} 17... Bf8 {[%clk 0:02:05.1]} 18. Ne3 {[%clk
0:01:04.8]} 18... Bg7 {[%clk 0:01:25.9]} 19. Nxd5 {[%clk 0:01:03.3]} 19... Bxd5
{[%clk 0:01:27.8]} 20. Bh6 {[%clk 0:01:01.7]} 20... f5 {[%clk 0:01:19.7]} 21.
Bxg7 {[%clk 0:01:01.6]} 21... Kxg7 {[%clk 0:01:19.5]} 22. Ng5 {[%clk 0:01:02.8]}
22... Bxg2 {[%clk 0:01:20]} 23. Kxg2 {[%clk 0:01:04.7]} 23... Rad8 {[%clk
0:01:18]} 24. Rad1 {[%clk 0:01:05.1]} 24... Qd5+ {[%clk 0:01:16.1]} 25. Qf3
{[%clk 0:01:01.1]} 25... h6 {[%clk 0:01:13.2]} 26. Nh3 {[%clk 0:00:41.5]} 26...
g5 {[%clk 0:01:10.8]} 27. Ng1 {[%clk 0:00:42]} 27... g4 {[%clk 0:01:07.1]} 28.
Qxd5 {[%clk 0:00:42.8]} 28... Rxd5 {[%clk 0:01:09]} 29. f3 {[%clk 0:00:40.9]}
29... h5 {[%clk 0:01:09.5]} 30. fxg4 {[%clk 0:00:40.4]} 30... hxg4 {[%clk
0:01:11.4]} 31. h3 {[%clk 0:00:42]} 31... gxh3+ {[%clk 0:01:12.4]} 32. Nxh3
{[%clk 0:00:43.9]} 32... Red8 {[%clk 0:01:04.5]} 33. Nf2 {[%clk 0:00:45.2]}
33... Kf6 {[%clk 0:00:48.4]} 34. Rf1 {[%clk 0:00:43.7]} 34... Kg6 {[%clk
0:00:46.7]} 35. Rde1 {[%clk 0:00:43.7]} 35... R5d6 {[%clk 0:00:38]} 36. Re3
{[%clk 0:00:43.3]} 36... Rd5 {[%clk 0:00:37.4]} 37. g4 {[%clk 0:00:34.1]} 37...
fxg4 {[%clk 0:00:39.3]} 38. Rg3 {[%clk 0:00:35.3]} 38... Rg8 {[%clk 0:00:33.2]}
39. Nxg4 {[%clk 0:00:34.5]} 39... Rxd3 {[%clk 0:00:23]} 40. Re3 {[%clk
0:00:32.7]} 40... Rxe3 {[%clk 0:00:21.7]} 41. Nxe3 {[%clk 0:00:28.1]} 41... Rd8
{[%clk 0:00:22]} 42. Kf3 {[%clk 0:00:26]} 42... Ne7 {[%clk 0:00:22.7]} 43. Ke4
{[%clk 0:00:26.6]} 43... Rd2 {[%clk 0:00:22.6]} 44. Nc4 {[%clk 0:00:26.2]} 44...
Re2+ {[%clk 0:00:22.9]} 45. Kd3 {[%clk 0:00:27.5]} 45... Rh2 {[%clk 0:00:23.7]}
46. Nxe5+ {[%clk 0:00:28.8]} 46... Kg5 {[%clk 0:00:23.8]} 47. Nf3+ {[%clk
0:00:29.7]} 1-0

[Event "*** Titled Tuesday Blitz"]
[Site "Chess.com"]
[Date "2019.09.03"]
[Round "1"]
[White "fmshawnrl123"]
[Black "mortngabriel"]
[Result "1-0"]
[WhiteElo "2673"]
[BlackElo "2313"]
[TimeControl "180+2"]
[EndTime "15:08:42 PDT"]
[Termination "fmshawnrl123 won by resignation"]

1. e4 {[%clk 0:03:01.7]} 1... c5 {[%clk 0:02:53.8]} 2. Nf3 {[%clk 0:03:02.6]}
2... Nc6 {[%clk 0:02:49.6]} 3. d3 {[%clk 0:03:02.6]} 3... g6 {[%clk 0:02:50.2]}
4. g3 {[%clk 0:03:03]} 4... Bg7 {[%clk 0:02:51.7]} 5. Bg2 {[%clk 0:03:04.4]}
5... Nf6 {[%clk 0:02:49.3]} 6. O-O {[%clk 0:03:05.6]} 6... O-O {[%clk
0:02:50.1]} 7. Nbd2 {[%clk 0:03:06.2]} 7... d6 {[%clk 0:02:46.7]} 8. c3 {[%clk
0:03:04.2]} 8... Nd7 {[%clk 0:01:59.8]} 9. a4 {[%clk 0:02:57.2]} 9... a6 {[%clk
0:01:47.9]} 10. Nb3 {[%clk 0:02:41.5]} 10... Nde5 {[%clk 0:01:21.2]} 11. d4
{[%clk 0:02:35.7]} 11... cxd4 {[%clk 0:01:17]} 12. cxd4 {[%clk 0:02:36.6]} 12...
Nxf3+ {[%clk 0:01:16.3]} 13. Bxf3 {[%clk 0:02:38.5]} 13... Bh3 {[%clk
0:01:03.9]} 14. Re1 {[%clk 0:02:36.9]} 14... e5 {[%clk 0:00:55.7]} 15. Be3
{[%clk 0:02:25.7]} 15... Rc8 {[%clk 0:00:47.1]} 16. d5 {[%clk 0:02:25.1]} 16...
Nb4 {[%clk 0:00:46]} 17. Rc1 {[%clk 0:02:25.7]} 17... Rxc1 {[%clk 0:00:44.4]}
18. Nxc1 {[%clk 0:02:27.6]} 18... Qc7 {[%clk 0:00:42]} 19. Nd3 {[%clk
0:02:22.1]} 19... Nc2 {[%clk 0:00:38.3]} 20. Bb6 {[%clk 0:01:53.3]} 20... Qxb6
{[%clk 0:00:33.7]} 21. Qxc2 {[%clk 0:01:54.4]} 21... Rc8 {[%clk 0:00:35.6]} 22.
Qd2 {[%clk 0:01:53.3]} 22... Qb3 {[%clk 0:00:35.8]} 23. Bd1 {[%clk 0:01:49.8]}
23... Qc4 {[%clk 0:00:33.3]} 24. g4 {[%clk 0:01:41.4]} 24... f5 {[%clk
0:00:20.3]} 25. gxf5 {[%clk 0:01:39.3]} 25... gxf5 {[%clk 0:00:21.3]} 26. Qe3
{[%clk 0:01:06.7]} 26... fxe4 {[%clk 0:00:16.9]} 27. Qxh3 {[%clk 0:00:49.2]}
27... exd3 {[%clk 0:00:17.5]} 28. Bb3 {[%clk 0:00:47.3]} 28... Qc5 {[%clk
0:00:09]} 29. Qxd3 {[%clk 0:00:44.6]} 29... Rf8 {[%clk 0:00:10.2]} 30. Rf1
{[%clk 0:00:39.5]} 30... Rf4 {[%clk 0:00:08.6]} 31. Bc2 {[%clk 0:00:30.4]} 31...
e4 {[%clk 0:00:09.5]} 32. Qe2 {[%clk 0:00:15.5]} 32... Bd4 {[%clk 0:00:07.7]}
33. Bxe4 {[%clk 0:00:15]} 33... Qc7 {[%clk 0:00:04.3]} 34. Bg2 {[%clk
0:00:14.5]} 34... Kh8 {[%clk 0:00:04.6]} 35. Qe8+ {[%clk 0:00:15.1]} 35... Kg7
{[%clk 0:00:05.8]} 36. Qe2 {[%clk 0:00:13.1]} 36... Qf7 {[%clk 0:00:06.7]} 37.
Kh1 {[%clk 0:00:14.1]} 37... Rxf2 {[%clk 0:00:07.3]} 38. Qg4+ {[%clk 0:00:14.6]}
38... Qg6 {[%clk 0:00:08]} 39. Qxd4+ {[%clk 0:00:15.5]} 39... Kh6 {[%clk
0:00:09.6]} 40. Qxf2 {[%clk 0:00:16.4]} 1-0

[Event "*** Titled Tuesday Blitz"]
[Site "Chess.com"]
[Date "2019.09.03"]
[Round "1"]
[White "chessknight02"]
[Black "M1711"]
[Result "0-1"]
[WhiteElo "2176"]
[BlackElo "2570"]
[TimeControl "180+2"]
[EndTime "15:08:44 PDT"]
[Termination "M1711 won by resignation"]

1. Nf3 {[%clk 0:02:16.8]} 1... c5 {[%clk 0:02:58.5]} 2. e4 {[%clk 0:02:16.5]}
2... e6 {[%clk 0:02:58.7]} 3. d4 {[%clk 0:02:16.5]} 3... cxd4 {[%clk 0:02:59.7]}
4. Nxd4 {[%clk 0:02:17.3]} 4... Nc6 {[%clk 0:03:00.9]} 5. Nxc6 {[%clk
0:02:17.5]} 5... bxc6 {[%clk 0:03:01.7]} 6. Bd3 {[%clk 0:02:18.5]} 6... d5
{[%clk 0:03:01.8]} 7. Nd2 {[%clk 0:02:19.5]} 7... Nf6 {[%clk 0:03:01.8]} 8. O-O
{[%clk 0:02:20.2]} 8... Be7 {[%clk 0:02:46.3]} 9. Re1 {[%clk 0:02:21]} 9... O-O
{[%clk 0:02:46.8]} 10. c3 {[%clk 0:02:11.2]} 10... Re8 {[%clk 0:02:33.7]} 11. e5
{[%clk 0:02:11.1]} 11... Nd7 {[%clk 0:02:34.4]} 12. Qh5 {[%clk 0:02:09.4]} 12...
g6 {[%clk 0:02:28.9]} 13. Qh3 {[%clk 0:01:57.8]} 13... Bg5 {[%clk 0:02:16.6]}
14. Nf3 {[%clk 0:01:54.4]} 14... Bxc1 {[%clk 0:02:17.3]} 15. Raxc1 {[%clk
0:01:56.3]} 15... Qe7 {[%clk 0:02:14]} 16. Nd4 {[%clk 0:01:48.2]} 16... Bb7
{[%clk 0:02:13.4]} 17. f4 {[%clk 0:01:48.3]} 17... c5 {[%clk 0:02:13.7]} 18. Nf3
{[%clk 0:01:49.1]} 18... Kg7 {[%clk 0:02:01.4]} 19. c4 {[%clk 0:01:29]} 19...
dxc4 {[%clk 0:01:54.5]} 20. Bxc4 {[%clk 0:01:20.7]} 20... Nb6 {[%clk 0:01:55.5]}
21. b3 {[%clk 0:01:18.4]} 21... Rad8 {[%clk 0:01:55.2]} 22. Red1 {[%clk
0:01:08.9]} 22... Nxc4 {[%clk 0:01:36]} 23. bxc4 {[%clk 0:01:09]} 23... Rd7
{[%clk 0:01:33.6]} 24. Qg3 {[%clk 0:00:56.4]} 24... Red8 {[%clk 0:01:30.5]} 25.
Qe1 {[%clk 0:00:57.3]} 25... Bxf3 {[%clk 0:01:29.6]} 26. gxf3 {[%clk 0:00:58.4]}
26... Rd4 {[%clk 0:01:29.7]} 27. Rxd4 {[%clk 0:00:43]} 27... Rxd4 {[%clk
0:01:31.6]} 28. Qe3 {[%clk 0:00:43.8]} 28... Qh4 {[%clk 0:01:31]} 29. Rb1 {[%clk
0:00:43.6]} 29... Qxf4 {[%clk 0:01:17.7]} 30. Qxf4 {[%clk 0:00:43.9]} 30... Rxf4
{[%clk 0:01:19.6]} 31. Rb7 {[%clk 0:00:44]} 31... Rxf3 {[%clk 0:01:16.9]} 32.
Rxa7 {[%clk 0:00:43.9]} 32... Re3 {[%clk 0:01:12.6]} 33. Rc7 {[%clk 0:00:35.2]}
33... Rxe5 {[%clk 0:01:11.9]} 34. a4 {[%clk 0:00:36.2]} 34... Re1+ {[%clk
0:01:09.9]} 35. Kf2 {[%clk 0:00:37.2]} 35... Ra1 {[%clk 0:01:11.8]} 36. Rxc5
{[%clk 0:00:32.2]} 36... Rxa4 {[%clk 0:01:12.7]} 37. Kf3 {[%clk 0:00:30.3]}
37... f5 {[%clk 0:01:12.4]} 38. Rc7+ {[%clk 0:00:30.4]} 38... Kf6 {[%clk
0:01:13.5]} 39. c5 {[%clk 0:00:31.3]} 39... Rc4 {[%clk 0:01:12.2]} 40. c6 {[%clk
0:00:32.3]} 40... e5 {[%clk 0:01:11]} 41. Rc8 {[%clk 0:00:30.8]} 41... Rc3+
{[%clk 0:01:06.4]} 42. Kf2 {[%clk 0:00:30.8]} 42... f4 {[%clk 0:01:07.2]} 43. c7
{[%clk 0:00:30.2]} 43... Kg7 {[%clk 0:01:08.3]} 44. Ke2 {[%clk 0:00:28.7]} 44...
e4 {[%clk 0:01:08.8]} 45. Kf2 {[%clk 0:00:29.7]} 45... Rc2+ {[%clk 0:01:09.6]}
46. Kf1 {[%clk 0:00:24.2]} 46... e3 {[%clk 0:01:09.9]} 47. Ke1 {[%clk 0:00:20]}
47... f3 {[%clk 0:01:09.8]} 48. Kd1 {[%clk 0:00:21.4]} 48... Rc6 {[%clk
0:01:08.3]} 49. h4 {[%clk 0:00:18]} 49... h5 {[%clk 0:01:09.2]} 50. Rd8 {[%clk
0:00:07.9]} 50... Rxc7 {[%clk 0:01:07.8]} 51. Rd3 {[%clk 0:00:08.6]} 51... e2+
{[%clk 0:01:08.5]} 52. Ke1 {[%clk 0:00:08.7]} 52... Rc1+ {[%clk 0:01:09.1]} 0-1

[Event "*** Titled Tuesday Blitz"]
[Site "Chess.com"]
[Date "2019.09.03"]
[Round "1"]
[White "Kimster98"]
[Black "jorquerino"]
[Result "0-1"]
[WhiteElo "2621"]
[BlackElo "2305"]
[TimeControl "180+2"]
[EndTime "15:08:53 PDT"]
[Termination "jorquerino won by resignation"]

1. Nf3 {[%clk 0:02:47]} 1... Nf6 {[%clk 0:02:56.3]} 2. g3 {[%clk 0:02:46.9]}
2... g6 {[%clk 0:02:56.2]} 3. b4 {[%clk 0:02:46]} 3... Bg7 {[%clk 0:02:56.8]} 4.
Bb2 {[%clk 0:02:47.4]} 4... d6 {[%clk 0:02:57.5]} 5. d4 {[%clk 0:02:46.2]} 5...
a5 {[%clk 0:02:51.2]} 6. b5 {[%clk 0:02:46.5]} 6... Nbd7 {[%clk 0:02:45.3]} 7.
c4 {[%clk 0:02:46.4]} 7... O-O {[%clk 0:02:44.7]} 8. Bg2 {[%clk 0:02:46.4]} 8...
e5 {[%clk 0:02:45.3]} 9. e3 {[%clk 0:02:37.9]} 9... Re8 {[%clk 0:02:43.4]} 10.
O-O {[%clk 0:02:38]} 10... e4 {[%clk 0:02:29.8]} 11. Nfd2 {[%clk 0:02:35.7]}
11... Nf8 {[%clk 0:02:29.1]} 12. Nc3 {[%clk 0:02:28.8]} 12... Bf5 {[%clk
0:02:29.1]} 13. Qc2 {[%clk 0:02:29]} 13... Qe7 {[%clk 0:02:07.6]} 14. Nd5 {[%clk
0:02:29.6]} 14... Nxd5 {[%clk 0:02:00]} 15. cxd5 {[%clk 0:02:31.5]} 15... h5
{[%clk 0:01:45.8]} 16. Rfc1 {[%clk 0:01:25.9]} 16... Rac8 {[%clk 0:01:43.1]} 17.
Nc4 {[%clk 0:01:02]} 17... b6 {[%clk 0:01:41.4]} 18. a4 {[%clk 0:01:02.7]} 18...
Nh7 {[%clk 0:01:35]} 19. Nd2 {[%clk 0:01:01.9]} 19... h4 {[%clk 0:01:30.4]} 20.
Ba3 {[%clk 0:00:51.9]} 20... Ng5 {[%clk 0:01:29.6]} 21. Qd1 {[%clk 0:00:48]}
21... Bh3 {[%clk 0:01:25.3]} 22. Bxh3 {[%clk 0:00:42]} 22... Nxh3+ {[%clk
0:01:25.6]} 23. Kg2 {[%clk 0:00:42.6]} 23... Ng5 {[%clk 0:01:13.1]} 24. gxh4
{[%clk 0:00:33.7]} 24... Nh7 {[%clk 0:01:14]} 25. Qg4 {[%clk 0:00:33.2]} 25...
Nf6 {[%clk 0:01:14.9]} 26. Qg5 {[%clk 0:00:31.8]} 26... Kh7 {[%clk 0:00:56.8]}
27. Rc6 {[%clk 0:00:31.7]} 27... Bh6 {[%clk 0:00:56.2]} 28. Qg3 {[%clk
0:00:33.2]} 28... Nxd5 {[%clk 0:00:53.2]} 29. Rac1 {[%clk 0:00:29.8]} 29... Qd7
{[%clk 0:00:43.9]} 30. Qh3 {[%clk 0:00:22.4]} 30... f5 {[%clk 0:00:43.5]} 31. h5
{[%clk 0:00:23.4]} 31... Rg8 {[%clk 0:00:41.3]} 32. hxg6+ {[%clk 0:00:23.2]}
32... Rxg6+ {[%clk 0:00:42.2]} 33. Kh1 {[%clk 0:00:24.6]} 33... Rcg8 {[%clk
0:00:42.4]} 34. Nxe4 {[%clk 0:00:21.4]} 34... Qg7 {[%clk 0:00:42.8]} 35. Ng3
{[%clk 0:00:21.6]} 35... f4 {[%clk 0:00:43.2]} 36. exf4 {[%clk 0:00:22.9]} 36...
Nxf4 {[%clk 0:00:40.3]} 37. Qf1 {[%clk 0:00:24]} 37... Nd5 {[%clk 0:00:38.8]}
38. Qd3 {[%clk 0:00:23.3]} 38... Kh8 {[%clk 0:00:38]} 39. h4 {[%clk 0:00:21]}
39... Bxc1 {[%clk 0:00:38.5]} 40. Bxc1 {[%clk 0:00:19.9]} 40... Qh7 {[%clk
0:00:37]} 41. Qe4 {[%clk 0:00:18.8]} 41... Nf6 {[%clk 0:00:31.2]} 42. Qf4 {[%clk
0:00:20.2]} 42... Nd5 {[%clk 0:00:27.3]} 43. Qe4 {[%clk 0:00:20.6]} 43... Nf6
{[%clk 0:00:24.8]} 44. Qf4 {[%clk 0:00:22]} 44... Nh5 {[%clk 0:00:23.9]} 45.
Nxh5 {[%clk 0:00:18.3]} 45... Rg1+ {[%clk 0:00:20.8]} 46. Kh2 {[%clk 0:00:19.5]}
46... R8g2+ {[%clk 0:00:21.7]} 47. Kh3 {[%clk 0:00:20.6]} 47... Qd7+ {[%clk
0:00:22.1]} 0-1

[Event "*** Titled Tuesday Blitz"]
[Site "Chess.com"]
[Date "2019.09.03"]
[Round "1"]
[White "GasconJR"]
[Black "Kriari"]
[Result "0-1"]
[WhiteElo "2484"]
[BlackElo "2918"]
[TimeControl "180+2"]
[EndTime "15:08:56 PDT"]
[Termination "Kriari won by resignation"]

1. d4 {[%clk 0:02:53.9]} 1... Nf6 {[%clk 0:03:00.8]} 2. Nf3 {[%clk 0:02:54.4]}
2... g6 {[%clk 0:03:02.2]} 3. e3 {[%clk 0:02:53.7]} 3... Bg7 {[%clk 0:03:03.5]}
4. Be2 {[%clk 0:02:50.2]} 4... O-O {[%clk 0:03:05.4]} 5. O-O {[%clk 0:02:51]}
5... d6 {[%clk 0:03:07.3]} 6. b4 {[%clk 0:02:50.6]} 6... c5 {[%clk 0:03:07.6]}
7. a3 {[%clk 0:02:48.8]} 7... cxd4 {[%clk 0:02:57.5]} 8. exd4 {[%clk 0:02:49.6]}
8... e5 {[%clk 0:02:59.1]} 9. dxe5 {[%clk 0:02:49.3]} 9... dxe5 {[%clk 0:03:01]}
10. Bb2 {[%clk 0:02:46.8]} 10... e4 {[%clk 0:02:57.3]} 11. Qxd8 {[%clk
0:02:41.3]} 11... Rxd8 {[%clk 0:02:59.2]} 12. Nfd2 {[%clk 0:02:05.3]} 12... Nc6
{[%clk 0:02:52.5]} 13. Nb3 {[%clk 0:02:04.6]} 13... Nd5 {[%clk 0:02:47.4]} 14.
Bxg7 {[%clk 0:02:04.4]} 14... Kxg7 {[%clk 0:02:49.3]} 15. Re1 {[%clk 0:01:50.6]}
15... Bf5 {[%clk 0:02:30.1]} 16. c4 {[%clk 0:01:23.8]} 16... Nf4 {[%clk
0:02:29.8]} 17. Nc3 {[%clk 0:01:23.8]} 17... a5 {[%clk 0:02:14.5]} 18. b5 {[%clk
0:01:04.7]} 18... Nd4 {[%clk 0:02:15.7]} 19. Nxd4 {[%clk 0:01:05]} 19... Rxd4
{[%clk 0:02:17.6]} 20. Bf1 {[%clk 0:01:06.1]} 20... Nd3 {[%clk 0:02:05.8]} 21.
Red1 {[%clk 0:00:37.2]} 21... Rad8 {[%clk 0:02:06.7]} 22. Nd5 {[%clk 0:00:12.6]}
22... Rxc4 {[%clk 0:01:45.6]} 23. Ne3 {[%clk 0:00:13.8]} 23... Rc5 {[%clk
0:01:40.3]} 24. Nxf5+ {[%clk 0:00:15.7]} 24... Rxf5 {[%clk 0:01:40.4]} 25. f3
{[%clk 0:00:16.1]} 25... Rxb5 {[%clk 0:01:36.8]} 26. fxe4 {[%clk 0:00:16.4]}
26... Rb3 {[%clk 0:01:31.1]} 27. Rd2 {[%clk 0:00:17.3]} 27... b5 {[%clk
0:01:02.5]} 28. Rad1 {[%clk 0:00:18.3]} 28... Rxa3 {[%clk 0:01:04]} 29. Rxd3
{[%clk 0:00:19.8]} 29... Rdxd3 {[%clk 0:01:00.7]} 30. Rxd3 {[%clk 0:00:21.7]}
30... Ra1 {[%clk 0:00:55.3]} 31. Rd7 {[%clk 0:00:17.5]} 31... b4 {[%clk
0:00:39.9]} 32. Rb7 {[%clk 0:00:18]} 32... Kf6 {[%clk 0:00:32.6]} 33. Rb5 {[%clk
0:00:17.6]} 33... Ra3 {[%clk 0:00:25.5]} 34. Kf2 {[%clk 0:00:17.1]} 34... b3
{[%clk 0:00:27.1]} 35. e5+ {[%clk 0:00:15.6]} 35... Kg5 {[%clk 0:00:24.7]} 36.
Bc4 {[%clk 0:00:08.6]} 36... a4 {[%clk 0:00:24.4]} 37. Bxf7 {[%clk 0:00:09.5]}
37... Ra2+ {[%clk 0:00:24.2]} 38. Kg3 {[%clk 0:00:10.8]} 38... Re2 {[%clk
0:00:18.8]} 39. Bc4 {[%clk 0:00:06.7]} 39... Re4 {[%clk 0:00:15.6]} 40. Rc5
{[%clk 0:00:04.1]} 40... Rxc4 {[%clk 0:00:11.5]} 41. Rxc4 {[%clk 0:00:05]} 41...
b2 {[%clk 0:00:12.6]} 42. Rb4 {[%clk 0:00:03.3]} 42... a3 {[%clk 0:00:14.2]} 43.
e6 {[%clk 0:00:04.6]} 43... Kf6 {[%clk 0:00:15.7]} 44. e7 {[%clk 0:00:03.1]}
44... Kxe7 {[%clk 0:00:16.9]} 0-1